bitfinex-derivatives/quotes_BTCF0:USTF0_20250602
["timestamp","ask_amount","ask_price","bid_price","bid_amount"]
[1748848136374,0.45181117,105400.0,105390.0,0.50305726]
[1748848136587,0.45181117,105400.0,105390.0,0.94087622]
[1748848136787,0.45181117,105400.0,105390.0,0.92087622]
[1748848137791,0.45181117,105400.0,105390.0,0.48307622]
[1748848138783,0.45606071,105400.0,105390.0,0.48307622]
[1748848139688,0.3120055,105400.0,105390.0,0.48307622]
[1748848139887,0.45606071,105400.0,105390.0,0.48307622]
[1748848141406,0.45606071,105400.0,105390.0,0.4657724]
[1748848142900,0.99642071,105400.0,105390.0,0.4657724]
[1748848143589,0.99642071,105400.0,105390.0,0.46578019]
[1748848144089,0.45606071,105400.0,105390.0,0.46578019]
[1748848144394,0.99634071,105400.0,105390.0,0.46578019]
[1748848144594,0.99626071,105400.0,105390.0,0.46578019]
[1748848145799,0.99201117,105400.0,105390.0,0.46578019]
[1748848146000,0.99193117,105400.0,105390.0,0.46578019]
[1748848146588,0.30775596,105400.0,105390.0,0.65545609]
[1748848146791,0.4146855,105400.0,105390.0,0.81712073]
[1748848147097,0.55874071,105400.0,105390.0,0.76776552]
[1748848147395,0.55874071,105400.0,105390.0,0.73536552]
[1748848147396,0.55854071,105400.0,105390.0,0.73536552]
[1748848147599,0.55874071,105400.0,105390.0,0.67306552]
[1748848147794,0.55449117,105400.0,105390.0,0.67306552]
[1748848147995,0.55449117,105400.0,105390.0,0.67306253]
[1748848148790,0.55449117,105400.0,105390.0,0.4657772]
[1748848148791,0.55874071,105400.0,105390.0,0.4657772]
[1748848149098,0.99654071,105400.0,105390.0,0.4657772]
[1748848149801,1.09654071,105400.0,105390.0,0.4657772]
[1748848150192,1.09654071,105400.0,105390.0,0.42416229]
[1748848150592,1.18547238,105400.0,105390.0,0.42416229]
[1748848151093,1.18555238,105400.0,105390.0,0.42416229]
[1748848151595,1.18555238,105400.0,105390.0,0.06336229]
[1748848153426,0.1896939,105380.0,105370.0,0.40696772]
[1748848153622,0.89442745,105380.0,105370.0,0.36303085]
[1748848153899,0.99222745,105380.0,105370.0,0.40465071]
[1748848154100,0.99222745,105380.0,105370.0,0.36303085]
[1748848154295,1.05137247,105380.0,105370.0,0.36303085]
[1748848154801,1.15137247,105380.0,105370.0,0.36303085]
[1748848156000,0.69854414,105380.0,105370.0,0.36303085]
[1748848156204,1.24014414,105380.0,105370.0,0.36777085]
[1748848156899,0.65720893,105380.0,105370.0,0.36777085]
[1748848157100,1.15117247,105380.0,105370.0,0.36777085]
[1748848158299,0.60961247,105380.0,105370.0,0.36777085]
[1748848158503,1.15109247,105380.0,105370.0,0.36777085]
[1748848158802,1.15129247,105380.0,105370.0,0.36777085]
[1748848160002,1.15129247,105380.0,105370.0,0.39887085]
[1748848162801,1.15129247,105380.0,105370.0,0.36777085]
[1748848162998,1.15554201,105380.0,105370.0,0.36777085]
[1748848164295,1.25404965,105380.0,105370.0,0.36777085]
[1748848165395,1.10999444,105380.0,105370.0,0.36777085]
[1748848165799,1.25404965,105380.0,105370.0,0.36777085]
[1748848166705,0.71256965,105380.0,105370.0,0.36777085]
[1748848167006,1.25624965,105380.0,105370.0,0.36777085]
[1748848167603,1.30480274,105380.0,105370.0,0.36777085]
[1748848168105,1.3005532,105380.0,105370.0,0.36777085]
[1748848168301,0.79087221,105380.0,105370.0,0.36777085]
[1748848168503,1.29103672,105380.0,105370.0,0.46527085]
[1748848168893,1.30061649,105380.0,105370.0,0.46527085]
[1748848169091,1.30486603,105380.0,105370.0,0.46527085]
[1748848169307,1.24578152,105380.0,105370.0,0.46527085]
[1748848169801,1.30487186,105380.0,105370.0,0.46527085]
[1748848170495,1.30487186,105380.0,105370.0,0.10447085]
[1748848170698,1.24578152,105380.0,105370.0,0.10447085]
[1748848170900,1.10172631,105380.0,105370.0,0.10447085]
[1748848171209,1.24578152,105380.0,105370.0,0.10447085]
[1748848173109,1.24578152,105380.0,105370.0,0.00697085]
[1748848173400,1.60658152,105380.0,105370.0,0.00697085]
[1748848174000,1.24578152,105380.0,105370.0,0.00697085]
[1748848174202,1.24578152,105380.0,105370.0,0.10227085]
[1748848175207,1.24153198,105380.0,105370.0,0.10227085]
[1748848175908,0.69773198,105380.0,105370.0,0.10227085]
[1748848176111,1.24341198,105380.0,105370.0,0.10227085]
[1748848177707,1.24325198,105380.0,105370.0,0.10227085]
[1748848178010,1.24321198,105380.0,105370.0,0.10227085]
[1748848178204,1.24317198,105380.0,105370.0,0.10227085]
[1748848180111,1.09911677,105380.0,105370.0,0.10227085]
[1748848180313,1.24742152,105380.0,105370.0,0.10227085]
[1748848180609,1.15848985,105380.0,105370.0,0.10227085]
[1748848181410,1.15424031,105380.0,105370.0,0.10227085]
[1748848181910,1.27292385,105380.0,105370.0,0.10227085]
[1748848182305,1.15424031,105380.0,105370.0,0.00697085]
[1748848182502,1.27717339,105380.0,105370.0,0.00697085]
[1748848183612,1.13311818,105380.0,105370.0,0.00697085]
[1748848184010,1.27717339,105380.0,105370.0,0.00697085]
[1748848184513,1.27292385,105380.0,105370.0,0.00697085]
[1748848185415,1.27717339,105380.0,105370.0,0.00697085]
[1748848186118,0.73173339,105380.0,105370.0,0.00697085]
[1748848186308,1.13271818,105380.0,105370.0,0.00697085]
[1748848186510,1.27252385,105380.0,105370.0,0.00697085]
[1748848189322,1.12846864,105380.0,105370.0,0.00697085]
[1748848189520,1.27252385,105380.0,105370.0,0.00697085]
[1748848189716,1.27272385,105380.0,105370.0,0.10267085]
[1748848190118,1.27252385,105380.0,105370.0,0.10267085]
[1748848190318,1.27272385,105380.0,105370.0,0.10267085]
[1748848191723,1.27697339,105380.0,105370.0,0.10267085]
[1748848194527,1.27697339,105380.0,105370.0,0.00697085]
[1748848199326,2.35357339,105380.0,105370.0,0.00697085]
[1748848200535,1.80833339,105380.0,105370.0,0.00697085]
[1748848200736,2.35213339,105380.0,105370.0,0.00697085]
[1748848201034,2.35209339,105380.0,105370.0,0.10017085]
[1748848201233,2.49628492,105380.0,105370.0,0.10017085]
[1748848207830,2.64040829,105380.0,105370.0,0.00697085]
[1748848210444,2.64040829,105380.0,105370.0,0.00697085]
[1748848210742,3.00120829,105380.0,105370.0,0.00697085]
[1748848214237,3.00120829,105380.0,105350.0,0.46725413]
[1748848214238,0.1897299,105360.0,105350.0,0.46725413]
[1748848214448,1.3360021,105360.0,105350.0,0.46479387]
[1748848214739,1.4292021,105360.0,105350.0,0.46409387]
[1748848215238,1.42932786,105360.0,105350.0,0.46409669]
[1748848215444,1.42932786,105360.0,105350.0,0.46609669]
[1748848215748,1.52932786,105360.0,105350.0,0.43459669]
[1748848216339,1.52932786,105360.0,105350.0,0.43933669]
[1748848217041,1.52932786,105360.0,105350.0,0.43733669]
[1748848217232,1.52932786,105360.0,105350.0,0.40723669]
[1748848217434,1.52932786,105360.0,105350.0,0.04643669]
[1748848217634,1.30291361,105360.0,105350.0,0.04643669]
[1748848217835,1.32233737,105360.0,105350.0,0.00474]
[1748848218733,1.32233737,105360.0,105350.0,0.06376738]
[1748848218931,1.03452487,105360.0,105350.0,0.06376738]
[1748848219228,1.17871112,105360.0,105350.0,0.04639708]
[1748848219632,1.17871112,105360.0,105350.0,0.00474]
[1748848220051,1.32289737,105360.0,105350.0,0.00474]
[1748848222135,1.32714691,105360.0,105350.0,0.00474]
[1748848223241,1.5989757,105360.0,105350.0,0.00474]
[1748848223640,1.71765924,105360.0,105350.0,0.00474]
[1748848224042,1.7134097,105360.0,105350.0,0.00474]
[1748848224440,1.71343086,105360.0,105350.0,0.00474]
[1748848225149,1.7176804,105360.0,105350.0,0.00474]
[1748848227250,1.71343086,105360.0,105350.0,0.00474]
[1748848227550,0.85175836,105360.0,105350.0,0.00474]
[1748848227737,0.85175836,105360.0,105350.0,0.09614]
[1748848227738,1.06988631,105360.0,105350.0,0.09614]
[1748848227936,1.49000139,105360.0,105350.0,0.09614]
[1748848228144,1.50943697,105360.0,105350.0,0.09614]
[1748848229751,1.50943697,105360.0,105350.0,0.09714]
[1748848231142,0.57419697,105360.0,105350.0,0.45794]
[1748848231349,0.70469256,105360.0,105350.0,0.45794]
[1748848231545,1.05498732,105360.0,105350.0,0.45794]
[1748848231843,0.99603173,105360.0,105350.0,0.45794]
[1748848232043,0.3683197,105360.0,105350.0,0.45794]
[1748848232247,1.05510595,105360.0,105350.0,0.45794]
[1748848232748,1.05510595,105360.0,105350.0,0.45894]
[1748848234450,0.9109197,105360.0,105350.0,0.45894]
[1748848234649,1.05510595,105360.0,105350.0,0.45894]
[1748848237948,1.05510595,105360.0,105350.0,0.09814]
[1748848238151,1.05510595,105360.0,105350.0,0.45894]
[1748848238451,1.05935549,105360.0,105350.0,0.45894]
[1748848239241,0.91516924,105360.0,105350.0,0.45894]
[1748848239445,1.05510595,105360.0,105350.0,0.45894]
[1748848240259,1.20605119,105360.0,105350.0,0.45894]
[1748848240457,1.21030073,105360.0,105350.0,0.09814]
[1748848242557,1.21030073,105360.0,105350.0,0.09714]
[1748848243453,1.20605119,105360.0,105350.0,0.09714]
[1748848244452,1.15114651,105360.0,105350.0,0.09714]
[1748848244654,1.00696026,105360.0,105350.0,0.09714]
[1748848244956,1.17978043,105360.0,105350.0,0.45794]
[1748848245551,0.74062043,105360.0,105350.0,0.45794]
[1748848245856,1.17958043,105360.0,105350.0,0.45794]
[1748848246053,1.21238043,105360.0,105350.0,0.45794]
[1748848249554,1.20813089,105360.0,105350.0,0.45794]
[1748848249856,1.20813089,105360.0,105350.0,0.09714]
[1748848250055,1.20813089,105360.0,105350.0,0.45794]
[1748848250255,1.24093089,105360.0,105350.0,0.45794]
[1748848250557,1.24518043,105360.0,105350.0,0.45794]
[1748848254354,1.18594651,105360.0,105350.0,0.4995741]
[1748848256859,1.18169697,105360.0,105350.0,0.4995741]
[1748848258462,1.18169697,105360.0,105350.0,0.49960449]
[1748848259162,1.18167561,105360.0,105350.0,0.49960449]
[1748848259662,1.18592515,105360.0,105350.0,0.49960449]
[1748848260975,1.33009004,105360.0,105350.0,0.49960449]
[1748848261564,1.33009004,105360.0,105350.0,0.49963782]
[1748848262368,1.33009004,105360.0,105350.0,0.40823782]
[1748848262667,1.47425493,105360.0,105350.0,0.40823782]
[1748848263263,1.38550969,105360.0,105350.0,0.40823782]
[1748848263661,1.2413448,105360.0,105350.0,0.40823782]
[1748848264864,1.23709526,105360.0,105350.0,0.40823782]
[1748848265261,1.23712596,105360.0,105350.0,0.40823782]
[1748848265464,1.23712596,105360.0,105350.0,0.40823386]
[1748848267972,1.23499169,105360.0,105350.0,0.40823386]
[1748848268575,1.23499169,105360.0,105350.0,0.04743386]
[1748848268969,0.59665369,105360.0,105350.0,0.04743386]
[1748848269175,1.03485369,105360.0,105350.0,0.50353386]
[1748848269369,1.17923393,105360.0,105350.0,0.50353386]
[1748848269569,1.17903393,105360.0,105350.0,0.50353386]
[1748848269771,1.17923393,105360.0,105350.0,0.50352962]
[1748848270674,1.17923393,105360.0,105350.0,0.14272962]
[1748848271177,1.32341417,105360.0,105350.0,0.14272962]
[1748848271382,1.32384448,105360.0,105350.0,0.14272962]
[1748848271971,1.32809402,105360.0,105350.0,0.14272962]
[1748848273684,1.03973354,105360.0,105350.0,0.14272962]
[1748848273984,1.32809402,105360.0,105350.0,0.10104]
[1748848274284,1.32809402,105360.0,105350.0,0.69327557]
[1748848274285,1.15119378,105360.0,105350.0,0.69327557]
[1748848274585,1.15099378,105360.0,105350.0,0.73744546]
[1748848274786,1.15119378,105360.0,105350.0,0.73744546]
[1748848274975,1.14694424,105360.0,105350.0,0.73744546]
[1748848275177,1.17764424,105360.0,105350.0,0.73744546]
[1748848275376,1.17764424,105360.0,105350.0,0.54669746]
[1748848275581,1.17764424,105360.0,105350.0,0.50452757]
[1748848275784,1.17764424,105360.0,105350.0,0.54869746]
[1748848275985,1.18189378,105360.0,105350.0,0.54869746]
[1748848278389,1.18189378,105360.0,105350.0,0.54868376]
[1748848278885,1.18189378,105360.0,105350.0,0.50452096]
[1748848279578,1.18189378,105360.0,105350.0,0.54868376]
[1748848279979,1.18189378,105360.0,105350.0,0.50452096]
[1748848280174,1.18189378,105360.0,105350.0,0.18788376]
[1748848280377,1.18189378,105360.0,105350.0,0.54868376]
[1748848280578,1.18189378,105360.0,105350.0,0.50452096]
[1748848282781,1.18189378,105360.0,105350.0,0.50451087]
[1748848283985,1.32607402,105360.0,105350.0,0.40921087]
[1748848284183,1.18189378,105360.0,105350.0,0.40921087]
[1748848284383,0.59871354,105360.0,105350.0,0.50171087]
[1748848284588,1.18177378,105360.0,105350.0,0.50071087]
[1748848284783,1.18197378,105360.0,105350.0,0.50071087]
[1748848284983,0.46509354,105360.0,105350.0,0.69045887]
[1748848285182,1.15115378,105360.0,105350.0,0.69045887]
[1748848285386,1.15147378,105360.0,105350.0,0.69045887]
[1748848285592,0.71219378,105360.0,105350.0,0.69045887]
[1748848285894,1.1511366,105360.0,105350.0,0.69045887]
[1748848286094,0.40035636,105360.0,105350.0,1.27387911]
[1748848286292,0.31137388,105360.0,105350.0,1.75760332]
[1748848286593,0.31117388,105360.0,105350.0,3.60336336]
[1748848286794,0.31137388,105360.0,105350.0,3.56169249]
[1748848286988,0.21137388,105360.0,105350.0,3.54462578]
[1748848287191,0.35548601,105360.0,105350.0,3.55543049]
[1748848287586,0.21137388,105360.0,105350.0,3.55643049]
[1748848287782,0.21137388,105360.0,105350.0,3.6033273]
[1748848288182,0.19417944,105360.0,105350.0,3.63929184]
[1748848288383,0.19417954,105360.0,105350.0,3.63924611]
[1748848288782,0.19417954,105360.0,105350.0,3.49513398]
[1748848288783,0.19397954,105360.0,105350.0,3.49513398]
[1748848288995,0.19417954,105360.0,105350.0,3.63924611]
[1748848289295,0.19397954,105360.0,105350.0,3.63924286]
[1748848289499,0.19417954,105360.0,105350.0,3.63924286]
[1748848290494,0.19417954,105360.0,105350.0,3.55130942]
[1748848291086,0.19417954,105360.0,105350.0,3.40720054]
[1748848291405,0.19417954,105360.0,105350.0,3.3012797]
[1748848291789,0.19417954,105360.0,105350.0,3.15717082]
[1748848292001,0.19417954,105360.0,105350.0,3.3012797]
[1748848293299,0.19417954,105360.0,105350.0,3.34530745]
[1748848295501,0.19417954,105360.0,105350.0,3.25970225]
[1748848295704,0.19417954,105360.0,105350.0,3.34527859]
[1748848297298,0.19417954,105360.0,105350.0,3.34475859]
[1748848298303,0.19417954,105360.0,105350.0,3.20064971]
[1748848298502,0.19417954,105360.0,105350.0,3.34475859]
[1748848299903,0.19417954,105360.0,105350.0,3.25918225]
[1748848300106,0.19417954,105360.0,105350.0,3.34474597]
[1748848300803,0.19417954,105360.0,105350.0,3.30878143]
[1748848301207,0.19417954,105360.0,105350.0,3.30846143]
[1748848301706,0.19417954,105360.0,105350.0,3.32748604]
[1748848302305,0.33828842,105360.0,105350.0,2.88834116]
[1748848302509,0.40198842,105360.0,105350.0,2.88834116]
[1748848302808,0.25787954,105360.0,105350.0,2.88834116]
[1748848303198,0.25787954,105360.0,105350.0,2.9243057]
[1748848303610,0.25787954,105360.0,105350.0,3.06841458]
[1748848304509,0.25787954,105360.0,105350.0,3.42921458]
[1748848307506,0.25787954,105360.0,105350.0,3.2850257]
[1748848307708,0.29097954,105360.0,105350.0,3.2850257]
[1748848308214,0.43508842,105360.0,105350.0,2.8468257]
[1748848308417,0.43508842,105360.0,105350.0,3.15906116]
[1748848308710,0.43508842,105360.0,105350.0,3.15910053]
[1748848309215,0.43513406,105360.0,105350.0,2.90101959]
[1748848309407,0.43513406,105360.0,105350.0,1.00369109]
[1748848309408,0.68268858,105360.0,105350.0,1.00369109]
[1748848310106,0.68268858,105360.0,105350.0,1.14784561]
[1748848310408,0.68268858,105360.0,105350.0,1.00369109]
[1748848311315,0.53855699,105360.0,105350.0,1.00369109]
[1748848312805,0.53855699,105360.0,105350.0,1.00376067]
[1748848313008,0.74195073,105360.0,105350.0,0.72834]
[1748848313213,1.18003073,105360.0,105350.0,0.72834]
[1748848313402,1.26901321,105360.0,105350.0,0.72834]
[1748848314013,1.26901321,105360.0,105350.0,0.72734]
[1748848315012,1.26901321,105360.0,105350.0,0.917088]
[1748848315013,1.12491576,105360.0,105350.0,0.917088]
[1748848315214,0.59757328,105360.0,105350.0,0.917088]
[1748848315410,0.59777328,105360.0,105350.0,0.917088]
[1748848316314,0.59777328,105360.0,105350.0,0.916088]
[1748848316511,0.59777328,105360.0,105350.0,0.918088]
[1748848318919,0.59777328,105360.0,105350.0,0.72834]
[1748848320117,0.59777328,105360.0,105350.0,0.36754]
[1748848322224,0.59777328,105360.0,105350.0,0.36654]
[1748848323015,0.59777328,105360.0,105350.0,0.00574]
[1748848323316,0.59777328,105360.0,105350.0,0.36654]
[1748848323518,0.59777328,105360.0,105350.0,0.00574]
[1748848323713,0.59777328,105360.0,105350.0,0.36654]
[1748848324622,0.6074617,105360.0,105350.0,0.36654]
[1748848326920,0.625035,105360.0,105350.0,0.36654]
[1748848327120,0.76921245,105360.0,105350.0,0.36654]
[1748848327427,0.48085755,105360.0,105350.0,0.36654]
[1748848327627,0.625035,105360.0,105350.0,0.36654]
[1748848327824,0.62078546,105360.0,105350.0,0.36654]
[1748848328533,0.76496291,105360.0,105350.0,0.36654]
[1748848328923,0.76496291,105360.0,105350.0,0.00574]
[1748848329124,0.76496291,105360.0,105350.0,0.36654]
[1748848330830,0.76921245,105360.0,105350.0,0.36654]
[1748848331226,0.625035,105360.0,105350.0,0.36654]
[1748848331930,0.625035,105360.0,105350.0,0.00574]
[1748848332124,0.625035,105360.0,105350.0,0.36654]
[1748848333331,0.71401748,105360.0,105350.0,0.36654]
[1748848333528,0.76921245,105360.0,105350.0,0.36654]
[1748848333923,0.76496291,105360.0,105350.0,0.36654]
[1748848334224,0.46691959,105360.0,105350.0,0.5562879]
[1748848334423,0.61109704,105360.0,105350.0,0.6502879]
[1748848334623,0.61089704,105360.0,105350.0,0.46054]
[1748848334827,0.61109704,105360.0,105350.0,0.46054]
[1748848335027,0.61109704,105360.0,105350.0,0.6502879]
[1748848335932,0.75527449,105360.0,105350.0,0.36654]
[1748848336127,0.84425697,105360.0,105350.0,0.36654]
[1748848336330,0.64086323,105360.0,105350.0,0.36654]
[1748848336530,0.65593609,105360.0,105350.0,0.36654]
[1748848336731,0.94409099,105360.0,105350.0,0.36654]
[1748848337037,0.94429099,105360.0,105350.0,0.36654]
[1748848337335,0.88504068,105360.0,105350.0,0.36754]
[1748848337831,0.88504068,105360.0,105350.0,0.36554]
[1748848338131,0.88504068,105360.0,105350.0,0.36654]
[1748848338930,0.88929022,105360.0,105350.0,0.36654]
[1748848339432,0.88930712,105360.0,105350.0,0.36654]
[1748848342635,1.03349302,105360.0,105350.0,0.00574]
[1748848342829,0.94451054,105360.0,105350.0,0.00574]
[1748848343029,1.06319408,105360.0,105350.0,0.00574]
[1748848343743,0.52723638,105360.0,105350.0,0.00574]
[1748848343935,0.65545874,105360.0,105350.0,0.36654]
[1748848344233,1.1777437,105360.0,105350.0,0.46244]
[1748848344630,1.3219296,105360.0,105350.0,0.46244]
[1748848346231,1.0333978,105360.0,105350.0,0.652188]
[1748848346431,1.1775837,105360.0,105350.0,0.652188]
[1748848346630,1.1444037,105360.0,105350.0,0.652188]
[1748848346835,1.1446037,105360.0,105350.0,0.652188]
[1748848347235,1.1444037,105360.0,105350.0,0.652188]
[1748848347528,1.1446037,105360.0,105350.0,0.652188]
[1748848348139,1.1444837,105360.0,105350.0,0.652188]
[1748848348441,1.1444837,105360.0,105350.0,0.69386214]
[1748848348640,0.5628578,105360.0,105350.0,0.69386214]
[1748848348843,0.5628578,105360.0,105350.0,0.83804804]
[1748848348844,0.6740437,105360.0,105350.0,0.83804804]
[1748848349027,0.6433437,105360.0,105350.0,0.83804804]
[1748848349932,0.6433437,105360.0,105350.0,0.88219648]
[1748848350141,0.6433437,105360.0,105350.0,0.73801058]
[1748848350543,0.5542092,105360.0,105350.0,0.91816102]
[1748848350729,0.5544092,105360.0,105350.0,0.97694904]
[1748848350934,0.4544092,105360.0,105350.0,0.97694904]
[1748848351336,0.3516892,105360.0,105350.0,0.97694904]
[1748848351634,0.4542092,105360.0,105350.0,0.97694904]
[1748848351844,0.4542092,105360.0,105350.0,1.02558577]
[1748848352235,0.4544092,105360.0,105350.0,1.02558577]
[1748848352632,0.4544092,105360.0,105350.0,2.52658577]
[1748848353245,0.3102233,105360.0,105350.0,2.38239987]
[1748848354246,0.3102233,105360.0,105350.0,2.02159987]
[1748848354447,0.3102233,105360.0,105350.0,2.74319987]
[1748848354647,0.3102233,105360.0,105350.0,2.74317387]
[1748848357152,0.3102233,105360.0,105350.0,2.70718132]
[1748848358347,0.3102233,105360.0,105350.0,2.74317387]
[1748848358852,0.3102233,105360.0,105350.0,2.65742864]
[1748848359149,0.3102233,105360.0,105350.0,2.70714911]
[1748848361355,0.3102233,105360.0,105350.0,2.85128082]
[1748848361557,0.3102233,105360.0,105350.0,2.88727337]
[1748848363053,0.3102233,105360.0,105350.0,2.74314166]
[1748848363950,0.43678171,105360.0,105350.0,3.18026166]
[1748848364258,0.33406171,105360.0,105350.0,3.1214503]
[1748848365048,0.18993,105360.0,105350.0,3.1214503]
[1748848365856,0.18993,105360.0,105350.0,3.08545775]
[1748848366062,0.18993,105360.0,105350.0,2.59970102]
[1748848366359,0.18993,105360.0,105350.0,3.18095273]
[1748848367454,0.18993,105360.0,105350.0,3.23976409]
[1748848367655,0.18993,105360.0,105350.0,3.23973709]
[1748848368161,0.18973,105360.0,105350.0,3.23165166]
[1748848368362,0.18973,105360.0,105350.0,3.58165166]
[1748848368567,0.18993,105360.0,105350.0,3.6695851]
[1748848368854,0.18993,105360.0,105350.0,3.3195851]
[1748848369256,0.18993,105360.0,105350.0,3.6895851]
[1748848369554,0.18993,105360.0,105350.0,3.64797706]
[1748848370157,0.18993,105360.0,105350.0,3.56004362]
[1748848371355,0.18993,105360.0,105350.0,3.64797706]
[1748848372161,0.18993,105360.0,105350.0,3.27797706]
[1748848372463,0.18993,105360.0,105350.0,3.38797706]
[1748848373858,0.18993,105360.0,105350.0,3.62198451]
[1748848374057,0.18993,105360.0,105350.0,3.65812617]
[1748848374464,0.18993,105360.0,105350.0,3.39812617]
[1748848374858,0.25353,105360.0,105350.0,3.29812617]
[1748848375260,0.39766628,105360.0,105350.0,3.29813074]
[1748848375459,0.40191582,105360.0,105350.0,3.29813074]
[1748848376262,0.40191582,105360.0,105350.0,3.27813074]
[1748848376460,0.25353,105360.0,105350.0,3.28813074]
[1748848377360,0.25353,105360.0,105350.0,3.61813074]
[1748848377964,0.39766628,105360.0,105350.0,3.30813074]
[1748848378166,0.42886628,105360.0,105350.0,3.30813074]
[1748848378866,0.28473,105360.0,105350.0,3.30813074]
[1748848379071,0.28473,105360.0,105350.0,3.18401242]
[1748848379280,0.28473,105360.0,105350.0,3.50401242]
[1748848379471,0.25353,105360.0,105350.0,3.50401242]
[1748848380062,0.25333,105360.0,105350.0,3.59216464]
[1748848380262,0.25333,105360.0,105350.0,3.5333965]
[1748848380468,0.25353,105360.0,105350.0,3.5333965]
[1748848380963,0.22143,105360.0,105350.0,3.1933565]
[1748848381164,0.22143,105360.0,105350.0,3.2293226]
[1748848381362,0.22143,105360.0,105350.0,3.5293226]
[1748848381579,0.22143,105360.0,105350.0,3.2393226]
[1748848382164,0.22143,105360.0,105350.0,3.5793226]
[1748848382365,0.25313,105360.0,105350.0,3.5793226]
[1748848382574,0.25313,105360.0,105350.0,3.5913113]
[1748848383269,0.25313,105360.0,105350.0,3.2513113]
[1748848383774,0.25313,105360.0,105350.0,3.5513113]
[1748848383973,0.25313,105360.0,105350.0,3.5033565]
[1748848384276,0.25313,105360.0,105350.0,3.4933565]
[1748848384569,0.25313,105360.0,105350.0,3.54044128]
[1748848385666,0.25313,105360.0,105350.0,3.58839608]
[1748848385871,0.0634,105360.0,105350.0,3.58839608]
[1748848386066,0.22143,105360.0,105350.0,3.58839608]
[1748848386366,0.22143,105360.0,105350.0,3.58857403]
[1748848386568,0.22143,105360.0,105350.0,3.59857403]
[1748848386866,0.25143,105360.0,105350.0,3.59857403]
[1748848387977,0.25143,105360.0,105350.0,3.74271031]
[1748848387978,0.0002,105360.0,105350.0,3.74271031]
[1748848388166,0.52166715,105370.0,105360.0,0.18973]
[1748848388365,0.52166715,105370.0,105360.0,0.97366431]
[1748848388564,0.37753087,105370.0,105360.0,1.11780059]
[1748848389781,0.06174297,105370.0,105360.0,1.11780059]
[1748848390165,0.06194297,105370.0,105360.0,1.12254059]
[1748848390365,0.06194297,105370.0,105360.0,1.12354059]
[1748848390663,0.06174297,105370.0,105360.0,1.12354059]
[1748848390864,0.06194297,105370.0,105360.0,1.14287584]
[1748848391362,0.00034297,105370.0,105360.0,1.4260495]
[1748848391563,0.00014297,105370.0,105360.0,1.61179724]
[1748848391874,0.00034297,105370.0,105360.0,3.09945673]
[1748848392278,0.00034297,105370.0,105360.0,3.19557551]
[1748848392578,0.00014297,105370.0,105360.0,3.0993869]
[1748848392881,0.00034297,105370.0,105360.0,3.0993869]
[1748848393082,0.00034297,105370.0,105360.0,3.24352318]
[1748848393974,0.00459251,105370.0,105360.0,3.0993869]
[1748848394378,0.00459251,105370.0,105360.0,2.98169694]
[1748848394679,0.00459251,105370.0,105360.0,3.12583322]
[1748848394872,0.00034297,105370.0,105360.0,3.12583322]
[1748848395176,0.00034297,105370.0,105360.0,2.98159334]
[1748848395974,0.00034297,105370.0,105360.0,2.98157974]
[1748848397376,0.00034297,105370.0,105360.0,2.98170828]
[1748848397674,0.00034297,105370.0,105360.0,3.21554549]
[1748848397975,0.25535497,105370.0,105360.0,3.21550549]
[1748848398166,0.28815497,105370.0,105360.0,3.21550549]
[1748848398767,0.28815497,105370.0,105360.0,3.25143646]
[1748848398970,0.28815497,105370.0,105360.0,2.77538549]
[1748848399173,0.28815497,105370.0,105360.0,3.25135651]
[1748848399769,0.28815497,105370.0,105360.0,3.21542549]
[1748848400073,0.29240451,105370.0,105360.0,3.21542549]
[1748848400386,0.29240451,105370.0,105360.0,3.21541807]
[1748848400587,0.29240451,105370.0,105360.0,2.77537807]
[1748848400791,0.29240451,105370.0,105360.0,2.77527064]
[1748848401190,0.29240451,105370.0,105360.0,3.21507064]
[1748848402682,0.29240451,105370.0,105360.0,3.25084221]
[1748848403081,0.29240451,105370.0,105360.0,3.30955476]
[1748848403478,0.29240451,105370.0,105360.0,3.25084221]
[1748848404094,0.29240451,105370.0,105360.0,0.84121773]
[1748848404095,0.43648899,105370.0,105360.0,0.84121773]
[1748848404294,0.43648899,105370.0,105360.0,0.81998966]
[1748848404495,0.43648899,105370.0,105360.0,0.73434888]
[1748848404775,0.43648899,105370.0,105360.0,2.32001493]
[1748848404981,0.43648899,105370.0,105360.0,0.82001493]
[1748848405172,0.43648899,105370.0,105360.0,0.66129241]
[1748848407688,0.29240451,105370.0,105360.0,0.66129241]
[1748848408898,0.29240451,105370.0,105360.0,0.57562636]
[1748848409078,0.29240451,105370.0,105360.0,0.66130964]
[1748848410983,0.43648899,105370.0,105360.0,0.45222328]
[1748848411480,0.43648899,105370.0,105360.0,0.40815938]
[1748848413274,0.43648899,105370.0,105360.0,0.40816631]
[1748848413990,0.43648899,105370.0,105360.0,0.59789631]
[1748848414680,0.29240451,105370.0,105360.0,0.59789631]
[1748848415079,0.29220451,105370.0,105360.0,0.59789631]
[1748848415279,0.29240451,105370.0,105360.0,0.59789631]
[1748848415682,0.29220451,105370.0,105360.0,0.59789631]
[1748848415879,0.29240451,105370.0,105360.0,0.59789631]
[1748848417790,0.29240451,105370.0,105360.0,0.40816631]
[1748848417791,0.43648899,105370.0,105360.0,0.40816631]
[1748848419087,0.43648899,105370.0,105360.0,0.59789631]
[1748848422189,0.43648899,105370.0,105360.0,0.59787371]
[1748848422388,0.43648899,105370.0,105360.0,0.23707371]
[1748848422585,0.43648899,105370.0,105360.0,0.59787371]
[1748848423391,0.43648899,105370.0,105360.0,0.40814371]
[1748848423582,0.43648899,105370.0,105360.0,0.59787371]
[1748848425490,0.43648899,105370.0,105360.0,0.40814371]
[1748848426385,0.43648899,105370.0,105360.0,0.40816774]
[1748848427385,0.53648899,105370.0,105360.0,0.40816774]
[1748848429695,0.62538569,105370.0,105360.0,0.40816774]
[1748848430993,0.62538569,105370.0,105360.0,0.59789774]
[1748848431296,0.63984899,105370.0,105360.0,0.40816774]
[1748848431597,0.72874569,105370.0,105360.0,0.40816774]
[1748848431900,0.72874569,105370.0,105360.0,0.04736774]
[1748848432197,0.72874569,105370.0,105360.0,0.40816774]
[1748848433599,0.62538569,105370.0,105360.0,0.40816774]
[1748848433789,1.16614569,105370.0,105360.0,0.40816774]
[1748848433985,0.72874569,105370.0,105360.0,0.59789774]
[1748848434296,1.16610569,105370.0,105360.0,0.50266774]
[1748848434599,1.16165615,105370.0,105360.0,0.50266774]
[1748848434805,1.16185615,105370.0,105360.0,0.50266774]
[1748848435305,1.16185615,105370.0,105360.0,0.50272781]
[1748848435598,1.16610569,105370.0,105360.0,0.69245781]
[1748848435999,1.16610569,105370.0,105360.0,0.50272781]
[1748848436199,0.62538569,105370.0,105360.0,0.50272781]
[1748848436399,1.16598569,105370.0,105360.0,0.50272781]
[1748848437399,1.16598569,105370.0,105360.0,0.40822781]
[1748848437899,1.18336709,105370.0,105360.0,0.40822781]
[1748848438100,1.18336709,105370.0,105360.0,0.50252781]
[1748848438598,1.18316709,105370.0,105360.0,0.50252781]